bitfinex/quotes_BTCUSD_20240703
["timestamp","ask_amount","ask_price","bid_price","bid_amount"]
[1720001478830,1.570337,60572.0,60571.0,0.30259733]
[1720001481320,1.7306358,60572.0,60571.0,0.30259733]
[1720001481954,1.7306358,60572.0,60571.0,0.2017519]
[1720001482164,1.76500888,60572.0,60571.0,0.028]
[1720001482578,1.76500888,60572.0,60571.0,0.2017519]
[1720001482789,1.76558746,60572.0,60571.0,0.028]
[1720001483238,1.76558732,60572.0,60571.0,0.2017519]
[1720001483874,1.76558732,60572.0,60571.0,0.30259733]
[1720001484921,1.76558732,60572.0,60571.0,0.33285706]
[1720001485578,1.76558732,60572.0,60571.0,0.30259733]
[1720001485787,1.7306358,60572.0,60571.0,0.30259733]
[1720001489233,1.77317182,60572.0,60571.0,0.30259733]
[1720001489658,1.77317182,60572.0,60571.0,0.2017519]
[1720001489882,1.77317182,60572.0,60571.0,0.30259733]
[1720001490097,1.77317182,60572.0,60571.0,0.028]
[1720001491003,1.78685793,60572.0,60571.0,0.028]
[1720001491499,1.78685793,60572.0,60571.0,0.02794355]
[1720001491973,1.78685793,60572.0,60557.0,0.1737519]
[1720001492189,0.0164,60574.0,60557.0,0.1737519]
[1720001492190,0.1602988,60565.0,60557.0,0.1737519]
[1720001492415,0.08015582,60567.0,60557.0,0.1737519]
[1720001492416,1.7306358,60564.0,60557.0,0.1737519]
[1720001492643,0.1602988,60560.0,60553.0,0.28609973]
[1720001492901,1.570337,60563.0,60553.0,0.28609973]
[1720001492902,1.7634358,60559.0,60553.0,0.28609973]
[1720001493125,0.20678114,60559.0,60553.0,0.28609973]
[1720001493369,1.58401934,60558.0,60553.0,0.28609973]
[1720001493605,1.74431814,60557.0,60553.0,0.28609973]
[1720001493830,1.58401934,60556.0,60553.0,0.28609973]
[1720001494058,1.79762822,60555.0,60553.0,0.1852543]
[1720001494284,1.82447396,60554.0,60553.0,0.0115024]
[1720001495292,1.81079162,60554.0,60553.0,0.0115024]
[1720001495502,1.89066347,60554.0,60553.0,0.0115024]
[1720001496003,1.81050765,60554.0,60553.0,0.0115024]
[1720001497151,1.49274965,60554.0,60553.0,0.0115024]
[1720001498530,1.49435455,60554.0,60553.0,0.0115024]
[1720001499863,1.69378375,60554.0,60553.0,0.0115024]
[1720001500079,1.69378375,60554.0,60546.0,0.10084543]
[1720001500295,0.1602988,60550.0,60546.0,0.10084543]
[1720001500532,1.26868192,60549.0,60546.0,0.10084543]
[1720001500721,1.42898072,60548.0,60546.0,0.10084543]
[1720001500997,0.1602988,60548.0,60547.0,0.11092997]
[1720001501213,0.17623203,60548.0,60547.0,0.11092997]
[1720001501629,0.17623203,60548.0,60547.0,0.10084543]
[1720001501852,0.17623186,60548.0,60547.0,0.10084543]
[1720001502072,0.1602988,60548.0,60547.0,0.10084543]
[1720001502302,1.42958734,60548.0,60547.0,0.10784543]
[1720001502529,0.17700834,60548.0,60547.0,0.10784543]
[1720001502745,1.42958734,60548.0,60547.0,0.10784543]
[1720001502957,1.42958734,60548.0,60547.0,0.007]
[1720001503168,1.42958734,60548.0,60547.0,0.015]
[1720001503381,1.43058734,60548.0,60547.0,0.015]
[1720001503607,1.49591814,60548.0,60547.0,0.015]
[1720001504942,1.49523417,60548.0,60547.0,0.015]
[1720001505586,1.49523417,60548.0,60547.0,0.015924]
[1720001507293,1.49523417,60548.0,60547.0,0.11676943]
[1720001508145,1.4148778,60548.0,60547.0,0.11676943]
[1720001508359,1.49386248,60548.0,60547.0,0.10836943]
[1720001511222,1.4148778,60548.0,60547.0,0.10836943]
[1720001511452,1.43012772,60548.0,60547.0,0.007524]
[1720001511687,1.49474147,60548.0,60547.0,0.007524]
[1720001514401,1.4148778,60548.0,60547.0,0.007524]
[1720001514613,1.49379679,60548.0,60547.0,0.007524]
[1720001514823,1.49379679,60548.0,60547.0,0.10836943]
[1720001517589,1.49485733,60548.0,60547.0,0.10836943]
[1720001520678,1.49462702,60548.0,60547.0,0.10836943]
[1720001521564,1.49462702,60548.0,60547.0,0.10831829]
[1720001521813,1.49462702,60548.0,60547.0,0.00747286]
[1720001522265,1.49445489,60548.0,60547.0,0.00747286]
[1720001522499,1.42997616,60548.0,60547.0,0.00747286]
[1720001522707,1.49446042,60548.0,60547.0,0.00747286]
[1720001524839,1.49446042,60548.0,60535.0,0.1737519]
[1720001525052,1.49446042,60548.0,60536.0,0.1737519]
[1720001525053,0.1602988,60539.0,60536.0,0.1737519]
[1720001525279,1.2844128,60538.0,60536.0,0.27459733]
[1720001525504,1.4128778,60537.0,60534.0,0.1737519]
[1720001525727,1.2680128,60536.0,60531.0,0.10084543]
[1720001525966,1.4283116,60535.0,60532.0,0.1737519]
[1720001526175,1.4283116,60535.0,60526.0,0.029196]
[1720001526176,1.2680128,60534.0,60530.0,0.10084543]
[1720001526394,1.4283116,60533.0,60529.0,0.27459733]
[1720001526598,0.1602988,60530.0,60527.0,0.05434155]
[1720001526808,0.1602988,60530.0,60528.0,0.1737519]
[1720001526809,1.2680128,60529.0,60528.0,0.1737519]
[1720001527016,1.4283116,60529.0,60528.0,0.1737519]
[1720001527460,1.4283116,60529.0,60527.0,0.05434155]
[1720001527659,1.4283116,60528.0,60527.0,0.05434155]
[1720001528071,1.4930754,60528.0,60527.0,0.05434155]
[1720001528520,1.49273061,60528.0,60527.0,0.05434155]
[1720001528963,1.49373061,60528.0,60527.0,0.06034155]
[1720001529901,1.49373061,60528.0,60527.0,0.06534155]
[1720001530968,1.86523061,60528.0,60527.0,0.06034155]
[1720001531397,1.7853778,60528.0,60527.0,0.06034155]
[1720001531626,1.86750452,60528.0,60527.0,0.06034155]
[1720001531835,1.86850452,60528.0,60526.0,0.029196]
[1720001532078,1.65616654,60527.0,60526.0,0.029196]
[1720001532932,1.72181965,60527.0,60526.0,0.029196]
[1720001534028,1.74981965,60527.0,60526.0,0.029196]
[1720001534880,1.73581965,60527.0,60526.0,0.13004143]
[1720001535292,1.73581965,60527.0,60526.0,0.029196]
[1720001535746,1.74981965,60527.0,60526.0,0.029196]
[1720001535960,1.66769293,60527.0,60526.0,0.029196]
[1720001536414,1.65369293,60527.0,60526.0,0.029196]
[1720001536857,1.66769293,60527.0,60526.0,0.029196]
[1720001539062,1.66769293,60527.0,60518.0,0.009196]
[1720001539294,0.24045462,60519.0,60518.0,0.009196]
[1720001539500,1.72477082,60519.0,60518.0,0.009196]
[1720001540548,1.649615,60519.0,60518.0,0.009196]
[1720001540759,0.397036,60519.0,60518.0,0.11004143]
[1720001541230,1.649615,60519.0,60518.0,0.11004143]
[1720001542063,1.649615,60519.0,60518.0,0.009196]
[1720001542389,1.654615,60519.0,60518.0,0.009196]
[1720001542649,1.654615,60519.0,60518.0,0.11004143]
[1720001543520,1.654615,60519.0,60518.0,0.009196]
[1720001544404,1.5901142,60519.0,60518.0,0.009196]
[1720001546374,1.6066142,60519.0,60518.0,0.009196]
[1720001547988,1.72920125,60519.0,60518.0,0.009196]
[1720001548368,1.72920125,60519.0,60518.0,0.11004143]
[1720001548881,1.72920125,60519.0,60518.0,0.009196]
[1720001549089,1.72942075,60519.0,60518.0,0.11004143]
[1720001549303,1.64480037,60519.0,60518.0,0.009196]
[1720001549521,1.74236873,60519.0,60518.0,0.009196]
[1720001552048,1.74219136,60519.0,60518.0,0.009196]
[1720001552485,1.74219136,60519.0,60511.0,0.002]
[1720001552833,0.24045462,60512.0,60511.0,0.002]
[1720001553046,1.71004704,60512.0,60511.0,0.002]
[1720001553480,1.79584718,60512.0,60511.0,0.002]
[1720001553696,1.71569136,60512.0,60511.0,0.10284543]
[1720001553902,1.55539256,60512.0,60511.0,0.77602706]
[1720001554118,0.33287615,60512.0,60511.0,0.68074244]
[1720001554336,0.12048903,60512.0,60511.0,0.68074244]
[1720001554547,0.001,60512.0,60511.0,0.68174244]
[1720001554952,0.342216,60512.0,60511.0,0.68174244]
[1720001555157,0.735537,60512.0,60511.0,0.68174244]
[1720001555361,0.707074,60512.0,60511.0,0.68074244]
[1720001555564,0.264303,60512.0,60511.0,0.68374244]
[1720001555778,0.4315394,60512.0,60511.0,0.68374244]
[1720001555994,0.4305394,60512.0,60511.0,0.68174244]
[1720001556197,0.4305394,60512.0,60511.0,0.52044364]
[1720001556198,0.4295394,60512.0,60511.0,0.52044364]
[1720001557037,0.4295394,60512.0,60511.0,0.27659733]
[1720001557212,0.4295394,60512.0,60511.0,0.50394885]
[1720001557213,0.4305394,60512.0,60511.0,0.50394885]
[1720001557673,0.4295394,60512.0,60511.0,0.50194885]
[1720001557877,0.4315394,60512.0,60511.0,0.50794885]
[1720001558030,0.4315394,60512.0,60511.0,0.50494885]
[1720001558234,0.4315394,60512.0,60511.0,0.50194885]
[1720001558235,0.4295394,60512.0,60511.0,0.50194885]
[1720001558468,0.4305394,60512.0,60511.0,0.55606334]
[1720001558655,0.4315394,60512.0,60511.0,0.55906334]
[1720001559234,0.4305394,60512.0,60511.0,0.55606334]
[1720001560121,0.4315394,60512.0,60511.0,0.55906334]
[1720001560358,0.4305394,60512.0,60511.0,0.55606334]
[1720001560560,0.4315394,60512.0,60511.0,0.55806334]
[1720001560980,0.4315394,60512.0,60511.0,0.55606334]
[1720001561182,0.4325394,60512.0,60511.0,0.55806334]
[1720001561836,0.4325394,60512.0,60511.0,0.50694885]
[1720001562457,0.46648495,60512.0,60511.0,0.50694885]
[1720001563088,0.46648495,60512.0,60511.0,0.28159733]
[1720001564418,0.54708336,60512.0,60511.0,0.28159733]
[1720001566065,0.70738216,60512.0,60511.0,0.28159733]
[1720001567331,0.54708336,60512.0,60511.0,0.28159733]
[1720001567757,0.54772987,60512.0,60511.0,0.28159733]
[1720001568802,0.54772987,60512.0,60511.0,0.50694885]
[1720001569018,0.46666398,60512.0,60511.0,0.50694885]
[1720001570898,0.4325394,60512.0,60511.0,0.50694885]
[1720001571124,0.20502136,60512.0,60511.0,0.71886214]
[1720001571540,0.1702364,60512.0,60511.0,0.71886214]
[1720001571980,0.1702364,60512.0,60511.0,0.71978614]
[1720001572186,0.1710764,60512.0,60511.0,0.71978614]
[1720001572596,0.20720806,60512.0,60511.0,0.71978614]
[1720001572798,0.1710764,60512.0,60511.0,0.71978614]
[1720001573004,0.20721037,60512.0,60511.0,0.71978614]
[1720001574183,0.43129327,60512.0,60511.0,0.71978614]
[1720001574404,0.1710764,60512.0,60511.0,0.71978614]
[1720001574620,0.2846614,60512.0,60511.0,0.71978614]
[1720001575054,0.1710764,60512.0,60511.0,0.71978614]
[1720001575311,0.2989514,60512.0,60511.0,0.71978614]
[1720001576952,0.2845154,60512.0,60511.0,0.71978614]
[1720001577398,0.32120236,60512.0,60511.0,0.71978614]
[1720001577639,0.32120236,60512.0,60511.0,0.50787285]
[1720001578393,0.32120236,60512.0,60511.0,0.28252133]
[1720001578875,0.32020236,60512.0,60511.0,0.27952133]
[1720001579395,0.32120236,60512.0,60511.0,0.28152133]
[1720001579623,0.4040802,60512.0,60511.0,0.28152133]
[1720001579845,0.4010802,60512.0,60511.0,0.27752133]
[1720001580094,0.4020802,60512.0,60511.0,0.27952133]
[1720001580315,0.2825154,60512.0,60511.0,0.27952133]
[1720001580533,0.40070384,60512.0,60511.0,0.27752133]
[1720001580765,0.40270384,60512.0,60511.0,0.28152133]
[1720001580980,0.40270384,60512.0,60511.0,0.27952133]
[1720001581489,0.40370384,60512.0,60511.0,0.28152133]
[1720001581722,0.40370384,60512.0,60511.0,0.27952133]
[1720001581723,0.40170384,60512.0,60511.0,0.27952133]
[1720001582183,0.40070384,60512.0,60511.0,0.27752133]
[1720001582411,0.40170384,60512.0,60511.0,0.27952133]
[1720001582648,0.18709916,60512.0,60504.0,0.55555556]
[1720001582898,0.24045462,60505.0,60504.0,0.55555556]
[1720001583123,0.19561229,60505.0,60504.0,0.55555556]
[1720001583366,0.19561229,60505.0,60504.0,0.83015289]
[1720001583629,0.03531349,60505.0,60504.0,0.91516818]
[1720001583856,1.129173,60507.0,60506.0,0.27459733]
[1720001584089,0.27962244,60507.0,60506.0,0.27459733]
[1720001584314,0.28985919,60507.0,60506.0,0.27459733]
[1720001584763,0.28985919,60507.0,60506.0,0.31755296]
[1720001585017,0.28985919,60507.0,60506.0,0.27459733]
[1720001585234,0.11932364,60507.0,60506.0,0.49994885]
[1720001585457,0.08208691,60507.0,60506.0,0.49994885]
[1720001585694,0.08015582,60532.0,60515.0,0.1737519]
[1720001585925,0.1602988,60525.0,60524.0,0.10084543]
[1720001586206,1.41164306,60525.0,60523.0,0.10084543]
[1720001586441,1.20932882,60524.0,60523.0,0.10084543]
[1720001586681,1.40747466,60524.0,60523.0,0.10084543]
[1720001586892,1.40747466,60524.0,60522.0,0.10084543]
[1720001587234,1.32731884,60523.0,60522.0,0.10084543]
[1720001587529,1.41164306,60523.0,60522.0,0.10084543]
[1720001588019,1.41164306,60523.0,60521.0,0.10084543]
[1720001588259,1.16702004,60522.0,60521.0,0.10084543]
[1720001588503,1.32731884,60522.0,60521.0,0.10084543]
[1720001588748,1.41164306,60522.0,60521.0,0.10084543]
[1720001588989,1.4014435,60522.0,60516.0,0.10084543]
[1720001589226,0.08015582,60517.0,60516.0,0.10084543]
[1720001589461,1.40204153,60517.0,60516.0,0.10084543]
[1720001590158,1.40204153,60517.0,60516.0,0.07314543]
[1720001590380,1.48159932,60517.0,60516.0,0.04544543]
[1720001590624,1.48559932,60517.0,60516.0,0.04544543]
[1720001590859,2.26172754,60517.0,60504.0,0.13189715]
[1720001591123,0.24045462,60505.0,60504.0,0.13189715]
[1720001591349,1.92584553,60505.0,60486.0,0.04544543]
[1720001591572,0.08015582,60487.0,60484.0,0.01215965]
[1720001591798,0.95889091,60486.0,60483.0,0.009196]
[1720001592017,0.1602988,60484.0,60483.0,0.05464143]
[1720001592269,1.10442066,60484.0,60483.0,0.009196]
[1720001593443,1.18547189,60484.0,60483.0,0.009196]
[1720001594125,1.16554489,60484.0,60481.0,0.54482456]
[1720001594339,0.1602988,60482.0,60481.0,0.54482456]
[1720001594558,1.08449366,60482.0,60481.0,0.54482456]
[1720001594815,1.16554489,60482.0,60481.0,0.54482456]
[1720001595054,1.16701818,60482.0,60481.0,0.54482456]
[1720001595724,1.06701818,60482.0,60481.0,0.44482456]
[1720001595974,0.27696818,60482.0,60481.0,0.01992756]
[1720001596224,0.27696818,60482.0,60449.0,0.0008973]
[1720001596225,0.1602988,60470.0,60458.0,0.26755556]
[1720001596461,0.1602988,60470.0,60458.0,0.21620572]
[1720001596462,0.08015582,60459.0,60458.0,0.21620572]
[1720001596678,0.27488583,60459.0,60458.0,0.11620572]
[1720001597391,1.17868463,60459.0,60449.0,0.0008973]
[1720001597608,0.24045462,60451.0,60435.0,0.45866186]
[1720001597877,0.1602988,60436.0,60435.0,0.45866186]
[1720001598105,5.0877468,60436.0,60435.0,0.45866186]
[1720001598553,4.0600088,60436.0,60435.0,0.45866186]
[1720001599248,4.0700088,60436.0,60435.0,0.45866186]
[1720001599961,4.8130088,60436.0,60435.0,0.45866186]
[1720001600416,4.8240088,60436.0,60435.0,0.45866186]
[1720001600633,4.8140088,60436.0,60435.0,0.45866186]
[1720001600847,4.8030088,60436.0,60435.0,0.45866186]
[1720001601088,4.8130088,60436.0,60435.0,0.45866186]
[1720001601302,4.0700088,60436.0,60435.0,0.45866186]
[1720001601510,4.0600088,60436.0,60435.0,0.45866186]
[1720001601722,4.0700088,60436.0,60435.0,0.45866186]
[1720001602180,4.0600088,60436.0,60435.0,0.45866186]
[1720001602412,4.0700088,60436.0,60435.0,0.45866186]
[1720001602637,4.0710088,60436.0,60435.0,0.45866186]
[1720001603091,4.0600088,60436.0,60435.0,0.45866186]
[1720001603317,4.0700088,60436.0,60435.0,0.45756186]
[1720001604016,4.0690088,60436.0,60435.0,0.45756186]
[1720001604244,4.0710088,60436.0,60435.0,0.45756186]
[1720001604689,4.0810088,60436.0,60435.0,0.45756186]
[1720001605188,4.0810088,60436.0,60432.0,0.02]
[1720001605480,4.0810088,60436.0,60360.0,0.48093494]
[1720001605481,0.08015582,60434.0,60360.0,0.48093494]
[1720001605701,0.0040744,60369.0,60360.0,0.4655115]
[1720001605930,0.0040744,60369.0,60344.0,0.38830961]
[1720001605931,0.03312822,60365.0,60344.0,0.38830961]
[1720001606185,2.551983,60364.0,60344.0,0.01215965]
[1720001606433,2.551983,60364.0,60343.0,0.65331744]
[1720001606434,2.551983,60364.0,60355.0,0.01215965]
[1720001606663,0.48093494,60363.0,60343.0,0.65331744]
[1720001606870,0.08015582,60360.0,60345.0,0.01215965]
[1720001607079,2.551983,60359.0,60349.0,0.03044543]
[1720001607290,2.551983,60359.0,60343.0,0.65331744]
[1720001607291,1.527228,60359.0,60343.0,0.65331744]
[1720001607490,0.81076,60360.0,60359.0,0.01215965]
[1720001607711,0.0165,60368.0,60367.0,0.04260508]
[1720001607920,0.15979546,60398.0,60368.0,0.01105965]
[1720001608125,0.08015582,60415.0,60368.0,0.01105965]
[1720001608126,0.15979546,60405.0,60368.0,0.01105965]
[1720001608325,0.08015582,60415.0,60368.0,0.01105965]
[1720001608326,0.08015582,60415.0,60368.0,0.29049772]
[1720001608535,0.15979546,60416.0,60368.0,0.45079652]
[1720001608743,0.15979546,60416.0,60368.0,0.42035109]
[1720001609151,0.15979546,60416.0,60368.0,0.45079652]
[1720001610451,0.15979546,60416.0,60368.0,0.42035109]
[1720001610664,0.15979546,60424.0,60368.0,0.42035109]
[1720001610885,0.15979546,60424.0,60407.0,0.03044543]
[1720001611101,0.15979546,60424.0,60368.0,0.18393992]
[1720001611102,2.5599158,60411.0,60410.0,0.01105965]
[1720001611327,2.2693158,60411.0,60410.0,0.01105965]
[1720001611539,1.4999958,60411.0,60410.0,0.04150508]
[1720001612202,1.0961198,60411.0,60410.0,0.04150508]
[1720001612461,1.0961198,60411.0,60410.0,0.01105965]
[1720001612726,1.0961198,60411.0,60410.0,0.04150508]
[1720001613779,1.0961198,60411.0,60410.0,0.01105965]
[1720001614001,1.0961198,60411.0,60410.0,0.04150508]
[1720001614211,1.0961198,60411.0,60408.0,0.01105965]
[1720001614426,0.24045462,60409.0,60399.0,0.01105965]
[1720001614633,0.03312822,60407.0,60400.0,0.01105965]
[1720001614837,2.551983,60406.0,60396.0,0.03044543]
[1720001615061,2.551983,60406.0,60396.0,0.04150508]
[1720001615282,2.551983,60406.0,60400.0,0.01105965]
[1720001615490,2.551983,60406.0,60401.0,0.03044543]
[1720001615907,2.551983,60406.0,60402.0,0.03044543]
[1720001616118,2.551983,60406.0,60400.0,0.04150508]
[1720001616330,2.551983,60406.0,60400.0,0.01205965]
[1720001616580,0.24045462,60401.0,60400.0,0.001]
[1720001616814,2.79243762,60401.0,60400.0,0.001]
[1720001617651,2.79243762,60401.0,60389.0,0.01105965]
[1720001617917,2.551983,60400.0,60390.0,0.48093494]
[1720001618131,2.551983,60400.0,60390.0,0.03044543]
[1720001618339,2.551983,60400.0,60393.0,0.01105965]
[1720001618554,2.551983,60400.0,60393.0,0.04150508]
[1720001618758,0.08015582,60394.0,60393.0,0.01105965]
[1720001618967,2.71226896,60394.0,60390.0,0.01105965]
[1720001619198,0.24045462,60391.0,60390.0,0.01105965]
[1720001619401,2.79242562,60391.0,60390.0,0.01105965]
[1720001619608,2.7122698,60391.0,60390.0,0.01105965]
[1720001620494,2.7122698,60391.0,60390.0,0.04150508]
[1720001620935,2.7122698,60391.0,60390.0,0.01105965]
[1720001621139,2.7122698,60391.0,60390.0,0.04150508]
[1720001621769,2.7122698,60391.0,60390.0,0.04250508]
[1720001621993,2.7122698,60391.0,60390.0,0.01105965]
[1720001622210,2.7122698,60391.0,60390.0,0.04150508]
[1720001622415,2.7122698,60391.0,60390.0,0.04250508]
[1720001622637,2.7122698,60391.0,60390.0,0.04150508]
[1720001623942,2.69035691,60391.0,60390.0,0.01105965]
[1720001624157,2.69135691,60391.0,60390.0,0.04250508]
[1720001624393,2.69135691,60391.0,60390.0,0.04150508]
[1720001624394,2.168079,60391.0,60390.0,0.04150508]
[1720001624627,0.912183,60391.0,60390.0,0.2678566]
[1720001624837,0.912183,60391.0,60390.0,0.04250508]
[1720001624838,0.001,60391.0,60390.0,0.04250508]
[1720001625046,0.03312822,60407.0,60390.0,0.04250508]
[1720001625047,2.551971,60405.0,60403.0,0.03044543]
[1720001625259,0.1602988,60404.0,60403.0,0.03044543]
[1720001625469,0.1602988,60404.0,60400.0,0.01105965]
[1720001625709,0.24045462,60401.0,60399.0,0.01105965]
[1720001625926,2.7122698,60400.0,60396.0,0.01105965]
[1720001626128,0.1602988,60397.0,60396.0,0.01105965]
[1720001626336,2.7122698,60397.0,60396.0,0.01105965]
[1720001628002,2.1092258,60397.0,60396.0,0.04150508]
[1720001628635,2.1092258,60397.0,60396.0,0.04250508]
[1720001629056,2.1092258,60397.0,60396.0,0.04150508]
[1720001629266,2.1092258,60397.0,60396.0,0.04350508]
[1720001629267,2.1102258,60397.0,60396.0,0.04350508]
[1720001629708,1.7191088,60397.0,60396.0,0.04350508]
[1720001629919,1.7191088,60397.0,60396.0,0.03110608]
[1720001630136,1.6404628,60397.0,60396.0,0.03110608]
[1720001631444,1.6142618,60397.0,60396.0,0.03110608]
[1720001632393,1.6142618,60397.0,60396.0,0.002]
[1720001632622,1.6142618,60397.0,60396.0,0.03110608]
[1720001633310,1.62448492,60397.0,60396.0,0.03110608]
[1720001634240,1.6142618,60397.0,60396.0,0.03110608]
[1720001635788,1.31249195,60397.0,60396.0,0.03110608]
[1720001636026,2.4115,60406.0,60405.0,0.02910608]
[1720001636267,2.4675798,60406.0,60405.0,0.02910608]
[1720001636971,2.3221708,60406.0,60405.0,0.02910608]
[1720001637903,2.3271708,60406.0,60405.0,0.02910608]
[1720001638374,2.36269586,60406.0,60405.0,0.02910608]
[1720001638718,2.36269468,60406.0,60405.0,0.02910608]
[1720001639363,2.3271708,60406.0,60405.0,0.02584662]
[1720001639579,2.36211076,60406.0,60405.0,0.02584662]
[1720001639992,2.3271708,60406.0,60405.0,0.02584662]
[1720001640826,2.3271708,60406.0,60405.0,0.07516479]
[1720001641028,2.3271708,60406.0,60405.0,0.09973696]
[1720001641290,2.3271708,60406.0,60405.0,0.02584662]
[1720001641678,2.3271708,60406.0,60405.0,0.14931709]
[1720001641981,2.5767988,60406.0,60405.0,0.02584662]
[1720001642195,2.5115798,60406.0,60405.0,0.02584662]
[1720001642411,1.9125478,60406.0,60405.0,0.02584662]
[1720001643010,0.959751,60406.0,60405.0,0.02584662]
[1720001643714,0.959751,60406.0,60405.0,0.68898972]
[1720001644151,0.959751,60406.0,60405.0,0.02584662]
[1720001644152,1.1200498,60406.0,60405.0,0.02584662]
[1720001644584,1.1150498,60406.0,60405.0,0.02584662]
[1720001645060,1.15752305,60406.0,60405.0,0.02584662]
[1720001645280,0.1652988,60406.0,60405.0,0.02584662]
[1720001645488,0.1662988,60406.0,60405.0,0.02784662]
[1720001645692,0.1602988,60406.0,60405.0,0.02584662]
[1720001645897,0.19792282,60406.0,60405.0,0.02584662]
[1720001646101,0.19792282,60406.0,60405.0,0.02784662]
[1720001646102,0.19892191,60406.0,60405.0,0.02784662]
[1720001646334,0.19892191,60406.0,60403.0,0.02584662]
[1720001646335,0.1602988,60406.0,60403.0,0.02584662]
[1720001646551,0.15979546,60419.0,60406.0,0.02584662]
[1720001646764,0.12064347,60418.0,60412.0,0.04944009]
[1720001646974,2.44858257,60417.0,60412.0,0.04944009]
[1720001647178,2.44858257,60416.0,60411.0,0.04944009]
[1720001647392,2.44858257,60415.0,60412.0,0.04944009]
[1720001647641,2.44858257,60414.0,60412.0,0.04944009]
[1720001647876,2.44858257,60414.0,60408.0,0.09888018]
[1720001647877,2.60888137,60413.0,60411.0,0.04944009]
[1720001648092,2.44858257,60412.0,60410.0,0.07416013]
[1720001648324,2.5717988,60411.0,60406.0,0.02584662]
[1720001648588,2.4115,60410.0,60408.0,0.04944468]
[1720001648790,0.19694924,60409.0,60408.0,0.04945644]
[1720001648995,2.60844924,60409.0,60408.0,0.07530306]
[1720001649201,2.60844924,60409.0,60407.0,0.07530306]
[1720001649399,2.44815044,60408.0,60407.0,0.07530306]
[1720001649604,2.44815044,60408.0,60407.0,0.02584662]
[1720001649605,2.60844924,60408.0,60407.0,0.02584662]
[1720001650328,2.60844924,60408.0,60406.0,0.02584662]
[1720001650561,2.60844924,60407.0,60406.0,0.02584662]
[1720001651012,2.60844924,60407.0,60391.0,0.04945644]
[1720001651013,2.60844924,60407.0,60398.0,0.02584662]
[1720001651221,2.53128621,60406.0,60396.0,0.02584662]
[1720001651489,2.53128621,60406.0,60392.0,0.22535152]
[1720001651490,2.5717988,60405.0,60393.0,0.02584662]
[1720001651697,0.08015582,60402.0,60393.0,0.02584662]
[1720001651909,0.08015582,60402.0,60376.0,0.09897614]
[1720001651910,2.6080019,60401.0,60387.0,0.02584662]
[1720001652117,2.4477031,60400.0,60391.0,0.02584662]
[1720001652323,2.6080019,60399.0,60389.0,0.02584662]
[1720001652530,5.188e-05,60391.0,60390.0,0.25119814]
[1720001652760,1.05980188,60391.0,60389.0,0.04948807]
[1720001652975,1.05980188,60391.0,60389.0,0.02584662]
[1720001652976,1.62057489,60390.0,60389.0,0.02584662]
[1720001653181,1.11143089,60390.0,60389.0,0.02584662]
[1720001653387,1.12165048,60390.0,60389.0,0.02584662]
[1720001653601,0.04650748,60390.0,60389.0,0.27631795]
[1720001653805,0.15649648,60390.0,60389.0,0.25119814]
[1720001654497,5.188e-05,60391.0,60390.0,0.25119814]
[1720001654920,0.04481497,60391.0,60390.0,0.25119814]
[1720001655583,0.72551009,60391.0,60390.0,0.25119814]
[1720001655793,0.36217313,60391.0,60390.0,0.25119814]
[1720001656005,0.05498513,60391.0,60390.0,0.25119814]
[1720001656237,0.48093494,60424.0,60411.0,0.02584662]
[1720001656447,0.48093494,60424.0,60413.0,0.02584662]
[1720001656448,0.1602988,60420.0,60413.0,0.02584662]
[1720001656693,2.46594424,60419.0,60411.0,0.02584662]
[1720001656880,0.08981508,60422.0,60411.0,0.02584662]
[1720001656881,2.62624304,60418.0,60411.0,0.02584662]
[1720001657086,2.46594424,60417.0,60411.0,0.02584662]
[1720001657290,0.08981508,60422.0,60411.0,0.02584662]
[1720001657291,2.62624304,60416.0,60411.0,0.02584662]
[1720001657504,2.4115,60415.0,60411.0,0.02584662]
[1720001657711,0.21462412,60414.0,60411.0,0.02584662]
[1720001657941,0.21462412,60414.0,60413.0,0.02584662]
[1720001657942,0.1602988,60414.0,60413.0,0.02584662]
[1720001658357,0.30433021,60414.0,60413.0,0.02584662]
[1720001659458,0.31833021,60414.0,60413.0,0.02584662]
[1720001659674,0.15803141,60414.0,60413.0,0.02584662]
[1720001660285,0.15803141,60414.0,60413.0,0.05096643]
[1720001660520,0.15803141,60414.0,60413.0,0.02584662]
[1720001660731,0.15684167,60414.0,60413.0,0.02584662]
[1720001661145,0.82714367,60414.0,60413.0,0.02584662]
[1720001661353,0.37259767,60414.0,60413.0,0.02584662]
[1720001661566,0.35250267,60414.0,60413.0,0.25119814]
[1720001661812,0.35250267,60414.0,60413.0,0.27631795]
[1720001661813,0.06768971,60414.0,60413.0,0.27631795]
[1720001662236,0.05368971,60414.0,60413.0,0.43661675]
[1720001662443,0.18068621,60439.0,60426.0,0.22535152]
[1720001662682,0.18068621,60439.0,60437.0,0.02584662]
[1720001662683,1.94472515,60438.0,60437.0,0.02584662]
[1720001662893,1.87406464,60438.0,60437.0,0.02584662]
[1720001663333,1.64068384,60438.0,60437.0,0.02584662]
[1720001663558,1.64050977,60438.0,60437.0,0.02584662]
[1720001663988,1.499662,60438.0,60437.0,0.02584662]
[1720001664208,1.6403056,60438.0,60437.0,0.25119814]
[1720001664494,1.6403056,60438.0,60401.0,0.08015582]
[1720001664495,0.3009424,60438.0,60397.0,0.14863039]
[1720001664709,0.08015582,60428.0,60426.0,0.48093494]
[1720001664933,2.46402172,60427.0,60405.0,0.22535152]
[1720001665147,2.46402172,60426.0,60405.0,0.22535152]
[1720001665368,2.46402172,60425.0,60405.0,0.22535152]
[1720001665588,2.46402172,60424.0,60405.0,0.22535152]
[1720001665832,2.62432052,60423.0,60406.0,0.07062865]
[1720001666055,2.62432052,60423.0,60409.0,0.22535152]
[1720001666056,2.46402172,60422.0,60409.0,0.22535152]
[1720001666268,2.62432052,60421.0,60409.0,0.22535152]
[1720001666492,2.46402172,60420.0,60409.0,0.22535152]
[1720001666722,2.0914864,60419.0,60410.0,0.02253515]
[1720001666956,2.46402172,60418.0,60410.0,0.02253515]
[1720001667187,2.5717988,60417.0,60410.0,0.02253515]
[1720001667405,2.43838792,60416.0,60410.0,0.02253515]
[1720001667622,2.10595492,60415.0,60409.0,0.22535152]
[1720001667832,1.60501992,60414.0,60409.0,0.22535152]
[1720001668045,1.45900492,60413.0,60409.0,0.22535152]
[1720001668332,0.08951579,60418.0,60409.0,0.22535152]
[1720001668333,1.47992317,60412.0,60409.0,0.24788667]
[1720001668542,2.02416317,60411.0,60409.0,0.24788667]
[1720001668752,0.13974714,60452.0,60415.0,0.22535152]
[1720001668965,3.14997519,60434.0,60415.0,0.22535152]
[1720001669174,2.4217213,60433.0,60415.0,0.24788667]
[1720001669387,0.24731895,60434.0,60415.0,0.24788667]
[1720001669388,0.014,60420.0,60415.0,0.24788667]
[1720001669626,2.66105492,60419.0,60410.0,0.22535152]
[1720001669832,2.4217213,60418.0,60410.0,0.22535152]
[1720001670048,2.5820201,60417.0,60410.0,0.22535152]
[1720001670266,2.4115,60416.0,60410.0,0.22535152]
[1720001670471,2.039879,60415.0,60410.0,0.22535152]